bitfinex/quotes_BTCUSD_20240929
["timestamp","ask_amount","ask_price","bid_price","bid_amount"]
[1727641675370,0.3332493,66033.0,66029.0,0.326748]
[1727641675613,0.3332493,66033.0,66030.0,0.001]
[1727641675853,0.3332493,66033.0,66029.0,0.326748]
[1727641676087,0.1848093,66033.0,66029.0,0.1753]
[1727641676342,0.3362483,66033.0,66029.0,0.326747]
[1727641677496,0.3392483,66033.0,66029.0,0.326747]
[1727641677729,0.3422483,66033.0,66029.0,0.326747]
[1727641677946,0.3332483,66033.0,66029.0,0.326747]
[1727641678166,0.1818093,66033.0,66029.0,0.478195]
[1727641678395,0.2392483,66033.0,66029.0,0.326747]
[1727641678633,0.1,66032.0,66029.0,0.326747]
[1727641679317,0.1,66032.0,66031.0,0.151444]
[1727641679552,0.1838093,66033.0,66029.0,0.629642]
[1727641679779,0.1838093,66033.0,66029.0,0.63047]
[1727641680190,0.0838093,66033.0,66030.0,0.151445]
[1727641680418,0.1818093,66033.0,66030.0,0.151445]
[1727641680645,0.001,66032.0,66029.0,0.327574]
[1727641680874,0.001,66032.0,66029.0,0.176127]
[1727641681102,0.3332493,66033.0,66029.0,0.327575]
[1727641681359,0.001,66032.0,66029.0,0.327575]
[1727641681602,0.1828093,66033.0,66031.0,0.151442]
[1727641681797,0.1828093,66033.0,66029.0,0.176127]
[1727641681798,0.1,66032.0,66029.0,0.327573]
[1727641682053,0.1,66032.0,66029.0,0.176127]
[1727641682282,0.1,66032.0,66031.0,0.151444]
[1727641682529,0.1,66032.0,66029.0,0.176127]
[1727641682755,0.251446,66030.0,66029.0,0.000827]
[1727641682999,0.3316013,66030.0,66029.0,0.000827]
[1727641683959,0.4105013,66030.0,66029.0,0.000827]
[1727641684194,0.45571048,66030.0,66029.0,0.000827]
[1727641685175,0.56142946,66030.0,66029.0,0.001827]
[1727641685619,0.56942946,66030.0,66029.0,0.002827]
[1727641686382,0.63724323,66030.0,66029.0,0.002827]
[1727641686614,0.49052946,66030.0,66029.0,0.002827]
[1727641687080,0.267446,66030.0,66029.0,0.002827]
[1727641687323,0.3476013,66030.0,66029.0,0.002827]
[1727641687558,0.3396013,66030.0,66029.0,0.001827]
[1727641687824,0.41441507,66030.0,66029.0,0.001827]
[1727641688055,0.40641507,66030.0,66029.0,0.001827]
[1727641688295,0.3456013,66030.0,66029.0,0.002827]
[1727641688548,0.41354348,66030.0,66029.0,0.002827]
[1727641688784,0.4135471,66030.0,66029.0,0.002827]
[1727641689019,0.41354661,66030.0,66029.0,0.002827]
[1727641689248,0.3456013,66030.0,66029.0,0.002827]
[1727641689703,0.43619505,66030.0,66029.0,0.002827]
[1727641690344,0.43624003,66030.0,66029.0,0.002827]
[1727641690536,0.36934721,66030.0,66029.0,0.002827]
[1727641691086,0.4825894,66030.0,66029.0,0.002827]
[1727641691814,0.36934721,66030.0,66029.0,0.002827]
[1727641699740,0.56360215,66030.0,66029.0,0.002827]
[1727641700210,0.36934721,66030.0,66029.0,0.002827]
[1727641700862,0.3456013,66030.0,66029.0,0.002827]
[1727641702398,0.50198936,66030.0,66029.0,0.002827]
[1727641702609,0.3456013,66030.0,66029.0,0.002827]
[1727641704160,0.36934716,66030.0,66029.0,0.002827]
[1727641705297,0.37100116,66030.0,66029.0,0.002827]
[1727641711964,0.21955516,66030.0,66029.0,0.002827]
[1727641712156,0.5074341,66030.0,66029.0,0.002827]
[1727641712462,0.2758328,66030.0,66029.0,0.002827]
[1727641712682,0.115654,66030.0,66029.0,0.330875]
[1727641714110,0.008654,66030.0,66029.0,0.329875]
[1727641714557,0.008654,66030.0,66029.0,0.330875]
[1727641715178,0.001654,66030.0,66029.0,0.329875]
[1727641715617,0.001654,66030.0,66029.0,0.330875]
[1727641715618,0.12233799,66030.0,66029.0,0.330875]
[1727641715848,0.05412306,66030.0,66029.0,0.330875]
[1727641716060,0.008654,66030.0,66029.0,0.330875]
[1727641716278,0.001654,66030.0,66029.0,0.329875]
[1727641717220,0.001654,66030.0,66029.0,0.330875]
[1727641719252,0.00829519,66030.0,66029.0,0.330875]
[1727641719506,0.001654,66030.0,66029.0,0.330875]
[1727641719978,0.00829931,66030.0,66029.0,0.330875]
[1727641720185,0.001654,66030.0,66029.0,0.330875]
[1727641720398,0.00829931,66030.0,66029.0,0.353875]
[1727641720642,0.001654,66030.0,66029.0,0.4340303]
[1727641721275,0.001654,66030.0,66029.0,0.353875]
[1727641722320,0.001654,66030.0,66029.0,0.4340303]
[1727641723245,0.001654,66030.0,66029.0,0.4330303]
[1727641723688,0.002654,66030.0,66029.0,0.4420303]
[1727641724335,0.002654,66030.0,66029.0,0.4410303]
[1727641724539,0.002654,66030.0,66029.0,0.4500303]
[1727641724540,0.003654,66030.0,66029.0,0.4500303]
[1727641724756,0.002654,66030.0,66029.0,0.4410303]
[1727641724959,0.001654,66030.0,66029.0,0.4320303]
[1727641725171,0.003654,66030.0,66029.0,0.379875]
[1727641727414,0.003654,66030.0,66029.0,0.356875]
[1727641734036,0.003654,66030.0,66029.0,0.180275]
[1727641734787,0.002654,66030.0,66029.0,0.166275]
[1727641735276,0.003654,66030.0,66029.0,0.176275]
[1727641735515,0.002654,66030.0,66029.0,0.162275]
[1727641735747,0.003654,66030.0,66029.0,0.170275]
[1727641735979,0.002654,66030.0,66029.0,0.160275]
[1727641736210,0.003654,66030.0,66029.0,0.168275]
[1727641743866,0.003654,66030.0,66029.0,0.16903914]
[1727641744805,0.003654,66030.0,66029.0,0.34811177]
[1727641745040,0.003654,66030.0,66029.0,0.346975]
[1727641746561,0.003654,66030.0,66029.0,0.248775]
[1727641747033,0.003654,66030.0,66029.0,0.168275]
[1727641750340,0.003654,66030.0,66029.0,0.17130354]
[1727641750816,0.003654,66030.0,66029.0,0.25180354]
[1727641751021,0.003654,66030.0,66029.0,0.248775]
[1727641751826,0.003654,66030.0,66029.0,0.25180354]
[1727641752502,0.003654,66030.0,66029.0,0.25180356]
[1727641755242,0.003654,66030.0,66029.0,0.27480356]
[1727641755468,0.003654,66030.0,66029.0,0.45315886]
[1727641755684,0.003654,66030.0,66029.0,0.4501303]
[1727641761559,0.003654,66030.0,66029.0,0.56622523]
[1727641762281,0.003654,66030.0,66029.0,0.72151317]
[1727641762984,0.002654,66030.0,66029.0,0.71351317]
[1727641763490,0.002654,66030.0,66029.0,0.71851317]
[1727641763710,0.002654,66030.0,66029.0,0.73151317]
[1727641765553,0.002654,66030.0,66029.0,0.61541824]
[1727641772826,0.002654,66030.0,66029.0,0.62041824]
[1727641783883,0.002654,66030.0,66029.0,0.63812278]
[1727641785761,0.002654,66030.0,66029.0,0.62041824]
[1727641785968,0.002654,66030.0,66029.0,0.63812375]
[1727641786209,0.002654,66030.0,66029.0,0.78655091]
[1727641793593,0.002654,66030.0,66029.0,0.78855091]
[1727641793829,0.002654,66030.0,66029.0,0.78655091]
[1727641795169,0.002654,66030.0,66029.0,0.70639561]
[1727641795475,0.002654,66030.0,66029.0,0.78655091]
[1727641795686,0.002654,66030.0,66029.0,0.78654852]
[1727641797690,0.002654,66030.0,66029.0,0.78854852]
[1727641799005,0.002654,66030.0,66029.0,0.78854656]
[1727641799724,0.002654,66030.0,66029.0,0.81687436]
[1727641800808,0.002654,66030.0,66029.0,0.81487436]
[1727641802621,0.002654,66030.0,66029.0,0.86029821]
[1727641802832,0.002654,66030.0,66029.0,0.81487436]
[1727641803290,0.002654,66030.0,66029.0,1.08074156]
[1727641803543,0.002654,66030.0,66029.0,1.06774156]
[1727641803812,0.001654,66030.0,66029.0,0.98660579]
[1727641804022,0.22668027,66039.0,66038.0,0.015]
[1727641804323,0.0945,66056.0,66043.0,0.179416]
[1727641804535,0.0945,66056.0,66043.0,0.52733275]
[1727641804761,0.0945,66056.0,66043.0,0.61308185]
[1727641805235,0.0945,66056.0,66043.0,0.69323715]
[1727641805454,0.0945,66056.0,66043.0,0.67553599]
[1727641805675,0.0945,66056.0,66043.0,0.7071812]
[1727641805893,0.0945,66056.0,66043.0,0.68953599]
[1727641807017,0.0945,66056.0,66043.0,0.70253599]
[1727641808479,0.0945,66056.0,66043.0,0.47537599]
[1727641808715,0.0945,66056.0,66043.0,0.64979199]
[1727641812368,0.0945,66056.0,66043.0,0.43685924]
[1727641812586,0.0779,66050.0,66043.0,0.43685924]
[1727641813544,0.0945,66049.0,66043.0,0.43685924]
[1727641816110,0.0779,66050.0,66043.0,0.43685924]
[1727641817535,0.0779,66050.0,66043.0,0.35670394]
[1727641817744,0.0945,66045.0,66043.0,0.178416]
[1727641820797,0.0977,66049.0,66043.0,0.178416]
[1727641821278,0.0977,66049.0,66043.0,0.165416]
[1727641821702,0.0977,66049.0,66043.0,0.179416]
[1727641822165,0.0977,66049.0,66043.0,0.165416]
[1727641822388,0.0977,66049.0,66043.0,0.179416]
[1727641823307,0.0977,66049.0,66043.0,0.193416]
[1727641823497,0.177,66055.0,66043.0,0.46241427]
[1727641823750,0.22668027,66053.0,66043.0,0.46241427]
[1727641824005,0.22668027,66053.0,66043.0,0.47641427]
[1727641824243,0.22668027,66053.0,66043.0,0.46241427]
[1727641824730,0.22668027,66053.0,66043.0,0.44841427]
[1727641824967,0.22668027,66053.0,66043.0,0.46241427]
[1727641825444,0.22668027,66053.0,66043.0,0.44841427]
[1727641825677,0.22668027,66053.0,66043.0,0.47641427]
[1727641825905,0.02538982,66044.0,66043.0,0.47641427]
[1727641826362,0.001656,66044.0,66043.0,0.47641427]
[1727641826831,0.001656,66044.0,66043.0,0.54256957]
[1727641827321,0.001656,66044.0,66043.0,0.55656957]
[1727641829385,0.02539,66044.0,66043.0,0.55656957]
[1727641831744,0.02539,66044.0,66043.0,0.43785924]
[1727641832709,0.10469,66044.0,66043.0,0.179416]
[1727641833643,0.10469,66044.0,66043.0,0.165416]
[1727641833917,0.10469,66044.0,66043.0,0.179416]
[1727641834150,0.10469,66044.0,66043.0,0.165416]
[1727641834398,0.10469,66044.0,66043.0,0.189416]
[1727641834625,0.10469,66044.0,66043.0,0.175416]
[1727641834862,0.10469,66044.0,66043.0,0.172243]
[1727641835357,0.10469,66044.0,66043.0,0.182243]
[1727641836960,0.080956,66044.0,66043.0,0.182243]
[1727641841310,0.10469176,66044.0,66043.0,0.182243]
[1727641847232,0.080956,66044.0,66043.0,0.182243]
[1727641847469,0.080956,66044.0,66043.0,0.172243]
[1727641847704,0.080956,66044.0,66043.0,0.152243]
[1727641847958,0.080956,66044.0,66043.0,0.162243]
[1727641848408,0.080956,66044.0,66043.0,0.152243]
[1727641849339,0.080956,66044.0,66043.0,0.166243]
[1727641849559,0.080956,66044.0,66043.0,0.152243]
[1727641850010,0.080956,66044.0,66043.0,0.165243]
[1727641850487,0.080956,66044.0,66043.0,0.179243]
[1727641850709,0.080956,66044.0,66043.0,0.165243]
[1727641851232,0.2552356,66044.0,66043.0,0.026827]
[1727641851483,0.3487356,66044.0,66043.0,0.026827]
[1727641851706,0.27022415,66044.0,66043.0,0.013827]
[1727641851956,0.42163815,66044.0,66043.0,0.027827]
[1727641852429,0.42163815,66044.0,66043.0,0.014827]
[1727641852892,0.42163815,66044.0,66043.0,0.028827]
[1727641853148,0.42163815,66044.0,66043.0,0.000827]
[1727641853396,0.33087,66044.0,66043.0,0.000827]
[1727641853632,0.5571684,66044.0,66043.0,0.007827]
[1727641853872,0.5571684,66044.0,66043.0,0.001827]
[1727641854351,0.58090931,66044.0,66043.0,0.002827]
[1727641854840,0.58090931,66044.0,66043.0,0.000827]
[1727641855563,0.45461091,66044.0,66043.0,0.000827]
[1727641856724,0.45561091,66044.0,66043.0,0.000827]
[1727641857209,0.45461091,66044.0,66043.0,0.000827]
[1727641857672,0.45561091,66044.0,66043.0,0.000827]
[1727641857912,0.43187,66044.0,66043.0,0.000827]
[1727641858399,0.5614515,66044.0,66043.0,0.000827]
[1727641860794,0.5614515,66044.0,66030.0,0.0021204]
[1727641860795,0.334644,66031.0,66030.0,0.0021204]
[1727641861269,0.151446,66030.0,66029.0,0.000827]
[1727641861492,0.3736977,66030.0,66029.0,0.000827]
[1727641861724,0.4562977,66030.0,66029.0,0.000827]
[1727641861972,0.71459984,66030.0,66029.0,0.000827]
[1727641862192,0.62488276,66030.0,66029.0,0.000827]
[1727641862439,0.58064263,66030.0,66029.0,0.000827]
[1727641862924,0.58064263,66030.0,66029.0,0.008827]
[1727641863403,0.62591481,66030.0,66029.0,0.008827]
[1727641863625,0.60216988,66030.0,66029.0,0.016827]
[1727641864597,0.5568977,66030.0,66029.0,0.016827]
[1727641866272,0.69353005,66030.0,66029.0,0.016827]
[1727641866531,0.71727546,66030.0,66029.0,0.016827]
[1727641866992,0.58064311,66030.0,66029.0,0.016827]
[1727641867759,0.5568977,66030.0,66029.0,0.016827]
[1727641869673,0.51495016,66030.0,66029.0,0.016827]
[1727641872156,0.53869535,66030.0,66029.0,0.016827]
[1727641872396,0.28019119,66030.0,66029.0,0.016827]
[1727641873147,0.02874519,66030.0,66029.0,0.016827]
[1727641873379,0.02874519,66030.0,66029.0,0.168275]
[1727641873881,0.02374519,66030.0,66029.0,0.168275]
[1727641874378,0.02874519,66030.0,66029.0,0.168275]
[1727641874619,0.02374519,66030.0,66029.0,0.168275]
[1727641875091,0.005,66031.0,66029.0,0.016827]
[1727641875282,0.005,66031.0,66030.0,0.151446]
[1727641875786,0.02874207,66031.0,66030.0,0.151446]
[1727641876060,0.02374207,66031.0,66030.0,0.151446]
[1727641876291,0.02874207,66031.0,66030.0,0.151446]
[1727641876758,0.02874207,66031.0,66030.0,0.159446]
[1727641876759,0.005,66031.0,66030.0,0.159446]
[1727641876991,0.02874218,66031.0,66030.0,0.151446]
[1727641877271,0.005,66035.0,66034.0,0.151437]
[1727641877545,0.005,66034.0,66030.0,0.01]
[1727641877773,0.105,66036.0,66032.0,0.302881]
[1727641878012,0.105,66036.0,66035.0,0.151434]
[1727641878998,0.005,66036.0,66035.0,0.151434]
[1727641879502,0.005,66036.0,66035.0,0.155434]
[1727641879767,0.005,66036.0,66035.0,0.151434]
[1727641880003,0.0287411,66036.0,66035.0,0.156434]
[1727641880228,0.0287411,66036.0,66035.0,0.159434]
[1727641881193,0.0287411,66036.0,66035.0,0.154434]
[1727641881442,0.005,66036.0,66035.0,0.158434]
[1727641881694,0.005,66036.0,66035.0,0.155434]
[1727641881933,0.005,66036.0,66035.0,0.154434]
[1727641882162,0.005,66036.0,66035.0,0.151434]
[1727641882400,0.005,66036.0,66035.0,0.155434]
[1727641882646,0.005,66036.0,66035.0,0.158434]
[1727641882892,0.005,66036.0,66035.0,0.154434]
[1727641883131,0.005,66036.0,66035.0,0.158434]
[1727641884302,0.02874107,66036.0,66035.0,0.158434]
[1727641884548,0.02874107,66036.0,66035.0,0.154434]
[1727641884805,0.02874107,66036.0,66035.0,0.151434]
[1727641885036,0.02874107,66036.0,66035.0,0.158434]
[1727641885264,0.02874107,66036.0,66035.0,0.155434]
[1727641885497,0.02874107,66036.0,66035.0,0.151434]
[1727641885729,0.02874107,66036.0,66035.0,0.158434]
[1727641886531,0.02874107,66036.0,66035.0,0.151434]
[1727641886961,0.02874107,66036.0,66035.0,0.154434]
[1727641887410,0.005,66036.0,66035.0,0.154434]
[1727641887634,0.005,66036.0,66035.0,0.158434]
[1727641890652,0.0287406,66036.0,66035.0,0.158434]
[1727641893275,0.0287406,66036.0,66035.0,0.154434]
[1727641893505,0.0287406,66036.0,66035.0,0.252534]
[1727641894747,0.0287406,66036.0,66035.0,0.253534]
[1727641894988,0.0287406,66036.0,66035.0,0.256534]
[1727641895216,0.0287406,66036.0,66035.0,0.252534]
[1727641895482,0.0237406,66036.0,66035.0,0.256534]
[1727641895717,0.0237406,66036.0,66035.0,0.41821111]
[1727641895962,0.0237406,66036.0,66035.0,0.44838508]
[1727641896416,0.0237406,66036.0,66035.0,0.41518262]
[1727641896651,0.005,66042.0,66041.0,0.151421]
[1727641898786,0.006654,66043.0,66042.0,0.151418]
[1727641899238,0.006654,66043.0,66042.0,0.244218]
[1727641899999,0.001654,66043.0,66042.0,0.244218]
[1727641900233,0.001654,66043.0,66042.0,0.32564601]
[1727641900475,0.001654,66043.0,66042.0,0.322618]
[1727641901938,0.001654,66043.0,66042.0,0.331618]
[1727641903116,0.001654,66043.0,66042.0,0.340618]
[1727641904026,0.0253907,66043.0,66042.0,0.340618]
[1727641908327,0.0253907,66043.0,66042.0,0.331618]
[1727641908580,0.0253907,66043.0,66042.0,0.322618]
[1727641908826,0.0253907,66043.0,66042.0,0.331618]
[1727641909327,0.0253907,66043.0,66042.0,0.340618]
[1727641910067,0.0253907,66043.0,66042.0,0.331618]
[1727641910547,0.0253907,66043.0,66042.0,0.340618]
[1727641911041,0.0253907,66043.0,66042.0,0.322618]
[1727641911283,0.0253907,66043.0,66042.0,0.340618]
[1727641911523,0.0253907,66043.0,66042.0,0.331618]
[1727641911763,0.0253907,66043.0,66042.0,0.322618]
[1727641912038,0.0253907,66043.0,66042.0,0.331618]
[1727641912301,0.0253907,66043.0,66042.0,0.340618]
[1727641912772,0.0253907,66043.0,66042.0,0.84824257]
[1727641913036,0.0253907,66043.0,66042.0,0.6215623]
[1727641913496,0.001654,66043.0,66042.0,0.6215623]
[1727641913987,0.001654,66043.0,66042.0,0.51890594]
[1727641914228,0.001654,66043.0,66042.0,0.50090594]
[1727641914474,0.001654,66043.0,66042.0,0.51190594]
[1727641914935,0.001654,66043.0,66042.0,0.52290594]
[1727641916637,0.02538839,66043.0,66042.0,0.51190594]
[1727641916881,0.001654,66043.0,66042.0,0.51190594]
[1727641917191,0.001654,66043.0,66042.0,0.6438911]
[1727641917421,0.001654,66043.0,66042.0,0.6218911]
[1727641917648,0.001654,66043.0,66042.0,0.6358911]
[1727641917872,0.001654,66043.0,66042.0,0.6477181]
[1727641918342,0.001654,66043.0,66042.0,0.6617181]
[1727641918566,0.001654,66043.0,66042.0,0.6477181]
[1727641918816,0.001654,66043.0,66042.0,0.6227181]
[1727641919046,0.001654,66043.0,66042.0,0.51573294]
[1727641919501,0.001654,66043.0,66042.0,0.50173294]
[1727641919993,0.001654,66043.0,66042.0,0.51573294]
[1727641920441,0.001654,66043.0,66042.0,0.50173294]
[1727641920684,0.001654,66043.0,66042.0,0.51573294]
[1727641920925,0.02538836,66043.0,66042.0,0.52973294]
[1727641921182,0.02538836,66043.0,66042.0,0.50173294]
[1727641921652,0.02538836,66043.0,66042.0,0.52973294]
[1727641921892,0.02538836,66043.0,66042.0,0.51573294]
[1727641922132,0.02538836,66043.0,66042.0,0.52973294]
[1727641922372,0.001654,66043.0,66042.0,0.52973294]
[1727641923103,0.001654,66043.0,66042.0,0.51573294]
[1727641923368,0.001654,66043.0,66042.0,0.52973294]
[1727641926452,0.02538831,66043.0,66042.0,0.52973294]
[1727641926661,0.001654,66043.0,66042.0,0.52973294]
[1727641929436,0.001654,66043.0,66042.0,0.51573294]
[1727641930203,0.001654,66043.0,66042.0,0.50173294]
[1727641930455,0.001654,66043.0,66042.0,0.51573294]
[1727641930951,0.001654,66043.0,66042.0,0.52973294]
[1727641931438,0.02538819,66043.0,66042.0,0.52973294]
[1727641933038,0.02538819,66043.0,66042.0,0.57401302]
[1727641933257,0.001654,66043.0,66042.0,0.57401302]
[1727641933782,0.001654,66043.0,66042.0,0.59185347]
[1727641934748,0.02538815,66043.0,66042.0,0.59185347]
[1727641935726,0.001654,66043.0,66042.0,0.59185347]
[1727641936982,0.001654,66043.0,66042.0,0.59186348]
[1727641940471,0.001654,66043.0,66042.0,0.59187029]
[1727641940740,0.02538823,66043.0,66042.0,0.59187029]
[1727641941217,0.02538823,66043.0,66042.0,0.54759021]
[1727641941929,0.001654,66043.0,66042.0,0.54759021]
[1727641946545,0.02538833,66043.0,66042.0,0.54759021]
[1727641946805,0.02538833,66043.0,66042.0,0.55759021]
[1727641947044,0.001654,66043.0,66042.0,0.55759021]
[1727641947273,0.001654,66043.0,66042.0,0.69349389]
[1727641947750,0.001654,66043.0,66042.0,0.68849389]
[1727641948042,0.001654,66043.0,66042.0,0.69349389]
[1727641949415,0.001654,66043.0,66042.0,0.69549389]
[1727641949654,0.001654,66043.0,66042.0,0.7635945]
[1727641949895,0.001654,66043.0,66042.0,0.95787772]
[1727641950139,0.001654,66043.0,66042.0,1.05504086]
[1727641950334,0.001654,66043.0,66042.0,1.0032287]
[1727641951277,0.001654,66043.0,66042.0,0.88972769]
[1727641951511,0.02538614,66043.0,66042.0,0.88972769]
[1727641951754,0.001654,66043.0,66042.0,1.0032287]
[1727641951975,0.22668027,66061.0,66060.0,0.151377]
[1727641952198,0.22668027,66061.0,66060.0,0.24676332]
[1727641952443,0.22668027,66061.0,66060.0,0.23162562]
[1727641952683,0.02373115,66061.0,66060.0,0.23162562]
[1727641953429,0.02373115,66061.0,66060.0,0.23262562]
[1727641953910,0.02373115,66061.0,66060.0,0.23362562]
[1727641955118,0.02373115,66061.0,66060.0,0.23262562]
[1727641955661,0.02373115,66061.0,66060.0,0.35471798]
[1727641955764,0.02373115,66061.0,66060.0,0.27446936]
[1727641956256,0.02373115,66061.0,66060.0,0.160377]
[1727641956506,0.1775,66063.0,66060.0,0.08824862]
[1727641956749,0.1775,66063.0,66062.0,0.151372]
[1727641957472,0.2012304,66063.0,66062.0,0.151372]
[1727641957715,0.2012304,66063.0,66062.0,0.26776126]
[1727641957951,0.2012304,66063.0,66062.0,0.151372]
[1727641958480,0.2012304,66063.0,66062.0,0.161372]
[1727641959214,0.2012304,66063.0,66062.0,0.171372]
[1727641959684,0.2012304,66063.0,66062.0,0.161372]
[1727641960172,0.2012304,66063.0,66062.0,0.171372]
[1727641960413,0.2012304,66063.0,66062.0,0.161372]
[1727641960654,0.2012304,66063.0,66062.0,0.171372]
[1727641960906,0.1775,66063.0,66062.0,0.171372]
[1727641964122,0.20123075,66063.0,66062.0,0.171372]
[1727641965320,0.20288675,66063.0,66062.0,0.171372]
[1727641965566,0.20288675,66063.0,66062.0,0.02]
[1727641965567,0.20788675,66063.0,66062.0,0.02]
[1727641966561,0.25328624,66063.0,66062.0,0.02]
[1727641966805,0.20788675,66063.0,66062.0,0.171372]
[1727641969119,0.20788675,66063.0,66062.0,0.161372]
[1727641969343,0.20788675,66063.0,66062.0,0.151372]
[1727641969838,0.20788675,66063.0,66062.0,0.161372]
[1727641970080,0.184156,66063.0,66062.0,0.161372]
[1727641970307,0.20788777,66063.0,66062.0,0.15858146]
[1727641970542,0.20788777,66063.0,66062.0,0.16858146]
[1727641970779,0.25327605,66063.0,66062.0,0.16858146]
[1727641971046,0.20788777,66063.0,66062.0,0.16858146]
[1727641972004,0.27597177,66063.0,66062.0,0.16858146]
[1727641972230,0.20788777,66063.0,66062.0,0.16858146]
[1727641972457,0.25327885,66063.0,66062.0,0.16858146]
[1727641973650,0.22954708,66063.0,66062.0,0.16858146]
[1727641973888,0.184156,66063.0,66062.0,0.16858146]
[1727641974111,0.22954708,66063.0,66062.0,0.16858146]
[1727641976717,0.2078876,66063.0,66062.0,0.16858146]
[1727641977693,0.25328462,66063.0,66062.0,0.16858146]
[1727641977938,0.22955302,66063.0,66062.0,0.16858146]
[1727641978172,0.22955303,66063.0,66062.0,0.16858146]
[1727641978432,0.184156,66063.0,66062.0,0.16858146]
[1727641981284,0.18387779,66063.0,66062.0,0.16858146]
[1727641983356,0.25197811,66063.0,66062.0,0.16858146]
[1727641984009,0.25197811,66063.0,66062.0,0.02]
[1727641984206,0.25197811,66063.0,66062.0,0.171372]
[1727641984583,0.25198779,66063.0,66062.0,0.171372]
[1727641986839,0.25198779,66063.0,66062.0,0.271372]
[1727641987791,0.074766,66063.0,66062.0,0.271372]
[1727641988230,0.09849751,66063.0,66062.0,0.271372]
[1727641988911,0.09849751,66063.0,66062.0,0.270972]
[1727641989173,0.09849751,66063.0,66062.0,0.270472]
[1727641989385,0.09849751,66063.0,66062.0,0.271299]
[1727641989598,0.074766,66063.0,66062.0,0.271299]
[1727641989841,0.074766,66063.0,66062.0,0.270799]
[1727641990053,0.074766,66063.0,66062.0,0.270299]
[1727641990270,0.006656,66063.0,66062.0,0.270299]
[1727641990713,0.006656,66063.0,66062.0,0.269799]
[1727641990955,0.006656,66063.0,66062.0,0.269299]
[1727641991415,0.006656,66063.0,66062.0,0.268899]
[1727641991686,0.006656,66063.0,66062.0,0.268699]
[1727641991937,0.006656,66063.0,66062.0,0.268399]
[1727641992146,0.006656,66063.0,66062.0,0.268299]
[1727641992384,0.006656,66063.0,66062.0,0.268099]
[1727641992621,0.006656,66063.0,66062.0,0.267699]
[1727641992871,0.006656,66063.0,66062.0,0.267599]
[1727641993135,0.006656,66063.0,66062.0,0.267299]
[1727641993839,0.006656,66063.0,66062.0,0.267199]
[1727641994281,0.03038751,66063.0,66062.0,0.267199]
[1727641995506,0.006656,66063.0,66062.0,0.267199]
[1727641995977,0.001656,66063.0,66062.0,0.267199]
[1727641996486,0.001656,66063.0,66062.0,0.62688852]
[1727641996487,0.04709973,66063.0,66062.0,0.62688852]
[1727641996735,0.001656,66063.0,66062.0,0.80517646]
[1727641997211,0.02538475,66063.0,66062.0,0.80517646]
[1727641997457,0.001656,66063.0,66062.0,0.79017646]
[1727641997698,0.001656,66063.0,66062.0,0.81017646]
[1727641997938,0.001656,66063.0,66062.0,0.80017646]
[1727641998163,0.001656,66063.0,66062.0,0.79017646]
[1727641998395,0.001656,66063.0,66062.0,0.80417646]
[1727641999333,0.001656,66063.0,66062.0,0.80617646]
[1727641999555,0.001656,66063.0,66062.0,0.82017646]
[1727641999784,0.001656,66063.0,66062.0,0.79217646]
[1727642000025,0.001656,66063.0,66062.0,0.80617646]
[1727642000278,0.02538413,66063.0,66062.0,0.82017646]
[1727642000523,0.001656,66063.0,66062.0,0.82017646]
[1727642001001,0.001656,66063.0,66062.0,0.71543556]
[1727642001451,0.00137708,66063.0,66062.0,0.71543556]
[1727642001675,0.00137708,66063.0,66062.0,0.71343556]
[1727642006990,0.02510511,66063.0,66062.0,0.71343556]
[1727642010622,0.00137708,66063.0,66062.0,0.71343556]
[1727642011544,0.00109887,66063.0,66062.0,0.71343556]
[1727642013343,0.00109887,66063.0,66062.0,0.84633012]
[1727642014724,0.00109887,66063.0,66062.0,0.71343556]
[1727642015176,0.02482672,66063.0,66062.0,0.71343556]
[1727642018928,0.00109887,66063.0,66062.0,0.71343556]
[1727642021485,0.00082066,66063.0,66062.0,0.71343556]
[1727642022482,0.02454767,66063.0,66062.0,0.71343556]
[1727642022743,0.02454767,66063.0,66062.0,0.84653012]
[1727642023723,0.00082066,66063.0,66062.0,0.84653012]
[1727642024658,0.00082066,66063.0,66062.0,0.84853012]
[1727642026843,0.02454706,66063.0,66062.0,0.84853012]
[1727642028595,0.22668027,66073.0,66072.0,0.23295]
[1727642028844,0.22668027,66073.0,66072.0,0.58338656]
[1727642029076,0.001656,66081.0,66080.0,0.151331]
[1727642029309,0.001656,66081.0,66080.0,0.23157962]
[1727642029542,0.00834647,66081.0,66080.0,0.23157962]
[1727642029774,0.001656,66081.0,66080.0,0.40407962]
[1727642030273,0.001656,66081.0,66080.0,0.60959876]
[1727642031519,0.001656,66081.0,66080.0,0.62259876]
[1727642031778,0.001656,66081.0,66080.0,0.63759876]
[1727642032273,0.001656,66081.0,66080.0,0.63559876]
[1727642032643,0.001656,66081.0,66080.0,0.63759876]
[1727642032830,0.001656,66081.0,66080.0,0.64759876]
[1727642033913,0.001656,66081.0,66080.0,0.62159876]
[1727642034188,0.001656,66081.0,66080.0,0.64759876]
[1727642034424,0.001656,66081.0,66080.0,0.62159876]
[1727642034675,0.001656,66081.0,66080.0,0.63559876]
[1727642034910,0.001656,66081.0,66080.0,0.64959876]
[1727642040833,0.001656,66081.0,66080.0,0.64759876]
[1727642041087,0.001656,66081.0,66080.0,0.74959876]
[1727642041568,0.00137712,66081.0,66080.0,0.74959876]
[1727642042988,0.00137712,66081.0,66080.0,0.75566276]
[1727642043735,0.00137712,66081.0,66080.0,0.74166276]
[1727642044217,0.00137712,66081.0,66080.0,0.75366276]
[1727642044460,0.00137712,66081.0,66080.0,0.75566276]
[1727642044691,0.00137712,66081.0,66080.0,0.72766276]
[1727642044935,0.00137712,66081.0,66080.0,0.75566276]
[1727642051470,0.00137712,66081.0,66080.0,0.75366276]
[1727642052188,0.00137712,66081.0,66080.0,0.75566276]
[1727642060083,0.00137712,66081.0,66080.0,0.75731676]
[1727642060753,0.00137712,66081.0,66080.0,0.74331676]
[1727642060993,0.00137712,66081.0,66080.0,0.75731676]
[1727642061453,0.00109891,66081.0,66080.0,0.74331676]
[1727642061690,0.00109891,66081.0,66080.0,0.72931676]
[1727642061914,0.00109891,66081.0,66080.0,0.75731676]
[1727642065672,0.00109891,66081.0,66080.0,0.75531676]